[Event "ESTCC-50 2025"]
[Site "Swidnica"]
[Date "2025.04.06"]
[Round "2.9"]
[White "Rogowski, Jaroslaw"]
[Black "Bischoff, Klaus"]
[Result "0-1"]
[Annotator "ChessBase"]
[ECO "E21"]
[WhiteElo "2050"]
[BlackElo "2425"]
[PlyCount "74"]
[EventDate "2025.04.05"]
[EventType "team-tourn"]
[EventCountry "POL"]
[SourceTitle "playchess.com"]
[Source "ChessBase"]
[SourceQuality "1"]
[WhiteTeam "Poland"]
[BlackTeam "Germany"]
[WhiteTeamCountry "POL"]
[BlackTeamCountry "GER"]
[TimeControl "40/5400+30:1800+30"]

1. Nf3 {[%emt 0:00:55]} Nf6 {[%emt 0:01:12]} 2. d4 {[%emt 0:00:00]} e6 {[%emt 0:00:25]} 3. c4 {[%emt 0:00:37]} b6 {[%emt 0:01:22]} 4. Nc3 {[%emt 0:05:23]} Bb7 {[%emt 0:00:57]} 5. Bf4 {[%emt 0:13:41]} Be7 {[%emt 0:01:44]} 6. Qc2 {[%emt 0:02:18]} d5 {[%emt 0:06:34]} 7. e3 {[%emt 0:07:00]} O-O {[%emt 0:02:19]} 8. Bd3 {[%emt 0:02:40]} dxc4 {[%emt 0:12:14]} 9. Bxc4 {[%emt 0:00:09]} Nbd7 {[%emt 0:00:10]} 10. O-O-O {[%emt 0:16:43]} c5 {[%emt 0:07:09]} 11. d5 {[%emt 0:00:26]} exd5 {[%emt 0:01:53]} 12. Nxd5 {[%emt 0:00:23]} Nxd5 {[%emt 0:00:31]} 13. Bxd5 {[%emt 0:00:07]} Bxd5 {[%emt 0:03:09]} 14. Rxd5 {[%emt 0:00:33]} Qc8 {[%emt 0:00:06]} 15. Rhd1 {[%emt 0:06:54]} Nf6 {[%emt 0:00:24]} 16. Re5 {[%emt 0:01:22]} Qb7 {[%emt 0:02:18]} 17. Nh4 {[%emt 0:08:56]} Ng4 {[%emt 0:08:54]} 18. Red5 {[%emt 0:07:59]} Bxh4 {[%emt 0:04:05]} 19. Rh5 {[%emt 0:00:07]} g6 {[%emt 0:00:29]} 20. Rxh4 {[%emt 0:00:06]} Qxg2 {[%emt 0:00:22]} 21. h3 {[%emt 0:09:17]} Nf6 {[%emt 0:03:21]} 22. Be5 {[%emt 0:01:40]} Qg5 {[%emt 0:01:05]} 23. Bxf6 {[%emt 0:04:34]} Qxf6 {[%emt 0:00:09]} 24. Rf4 {[%emt 0:00:14]} Qe6 {[%emt 0:00:19]} 25. h4 {[%emt 0:02:37]} Rad8 {[%emt 0:01:02]} 26. Rg1 {[%emt 0:01:29]} Rd5 {[%emt 0:00:38]} 27. Qa4 {[%emt 0:01:39]} Rf5 {[%emt 0:02:28]} 28. Re4 {[%emt 0:00:43]} Qf6 {[%emt 0:00:30]} 29. f4 {[%emt 0:01:01]} Rh5 {[%emt 0:02:28]} 30. Qxa7 {[%emt 0:01:43]} Rxh4 {[%emt 0:00:22]} 31. Qe7 {[%emt 0:00:10]} Qc6 {[%emt 0:00:56]} 32. Rd1 {[%emt 0:01:12]} Rh2 {[%emt 0:00:14]} 33. f5 {[%emt 0:00:41]} Qb5 {[%emt 0:00:54]} 34. Qe5 {[%emt 0:00:26]} Qe2 {[%emt 0:00:53]} 35. Qc3 {[%emt 0:00:29]} b5 {[%emt 0:03:37]} 36. fxg6 {[%emt 0:02:36]} hxg6 {[%emt 0:00:08]} 37. Re1 {[%emt 0:00:31]} Qg2 {[%emt 0:00:55]} 0-1

[Event "ESTCC-50 2025"]
[Site "Swidnica"]
[Date "2025.04.06"]
[Round "2.10"]
[White "Holzke, Frank"]
[Black "Ograbek, Grzegorz"]
[Result "1-0"]
[Annotator "ChessBase"]
[ECO "C41"]
[WhiteElo "2412"]
[BlackElo "2068"]
[PlyCount "75"]
[EventDate "2025.04.05"]
[EventType "team-tourn"]
[EventCountry "POL"]
[SourceTitle "playchess.com"]
[Source "ChessBase"]
[SourceQuality "1"]
[WhiteTeam "Germany"]
[BlackTeam "Poland"]
[WhiteTeamCountry "GER"]
[BlackTeamCountry "POL"]
[TimeControl "40/5400+30:1800+30"]

1. e4 {[%emt 0:00:13]} e5 {[%emt 0:00:17]} 2. Nf3 {[%emt 0:00:19]} d6 {[%emt 0:00:31]} 3. d4 {[%emt 0:00:40]} exd4 {[%emt 0:00:18]} 4. Nxd4 {[%emt 0:00:20]} Nf6 {[%emt 0:00:18]} 5. Nc3 {[%emt 0:00:39]} Be7 {[%emt 0:00:27]} 6. g3 {[%emt 0:01:09]} O-O {[%emt 0:04:09]} 7. Bg2 {[%emt 0:00:14]} Re8 {[%emt 0:00:26]} 8. O-O {[%emt 0:00:40]} Bf8 {[%emt 0:02:37]} 9. Bf4 {[%emt 0:02:13]} Nbd7 {[%emt 0:01:07]} 10. Re1 {[%emt 0:02:45]} Ne5 {[%emt 0:09:54]} 11. Qd2 {[%emt 0:02:39]} c6 {[%emt 0:27:32]} 12. Rad1 {[%emt 0:02:10]} Ng6 {[%emt 0:07:03]} 13. Be3 {[%emt 0:02:22]} Ng4 {[%emt 0:00:20]} 14. Bg5 {[%emt 0:01:10]} Qb6 {[%emt 0:03:02]} 15. Na4 {[%emt 0:05:42]} Qc7 {[%emt 0:08:44]} 16. Qc3 {[%emt 0:07:24]} h6 {[%emt 0:01:15]} 17. Bc1 {[%emt 0:01:52]} a6 {[%emt 0:08:08]} 18. h3 {[%emt 0:06:22]} Nf6 {[%emt 0:00:37]} 19. b3 {[%emt 0:01:07]} Bd7 {[%emt 0:00:28]} 20. Nf5 {[%emt 0:24:17]} Bxf5 {[%emt 0:11:29]} 21. exf5 {[%emt 0:00:20]} Rxe1+ {[%emt 0:00:32]} 22. Rxe1 {[%emt 0:04:01]} Ne5 {[%emt 0:00:33]} 23. Be3 {[%emt 0:03:18]} Re8 {[%emt 0:00:22]} 24. Qd2 {[%emt 0:05:19]} b5 {[%emt 0:01:58]} 25. Nb2 {[%emt 0:02:21]} d5 {[%emt 0:01:03]} 26. Nd3 {[%emt 0:05:42]} Ne4 {[%emt 0:01:55]} 27. Qc1 {[%emt 0:00:23]} b4 {[%emt 0:03:03]} 28. Bf4 {[%emt 0:02:37]} Bd6 {[%emt 0:00:38]} 29. Bxe5 {[%emt 0:00:43]} Bxe5 {[%emt 0:00:11]} 30. Bxe4 {[%emt 0:00:19]} dxe4 {[%emt 0:00:54]} 31. Rxe4 {[%emt 0:00:14]} f6 {[%emt 0:04:11]} 32. Qe3 {[%emt 0:04:19]} c5 {[%emt 0:01:10]} 33. Qxc5 {[%emt 0:02:41]} Qxc5 {[%emt 0:00:56]} 34. Nxc5 {[%emt 0:00:09]} Rc8 {[%emt 0:00:31]} 35. Nxa6 {[%emt 0:00:36]} Rxc2 {[%emt 0:00:39]} 36. Nxb4 {[%emt 0:00:10]} Rb2 {[%emt 0:00:31]} 37. Nd3 {[%emt 0:01:58]} Rb1+ {[%emt 0:00:20]} 38. Re1 {[%emt 0:00:30]} 1-0

[Event "ESTCC-50 2025"]
[Site "Swidnica"]
[Date "2025.04.06"]
[Round "2.11"]
[White "Czyz, Andrzej"]
[Black "Boensch, Uwe"]
[Result "0-1"]
[Annotator "TA"]
[ECO "A70"]
[WhiteElo "1985"]
[BlackElo "2465"]
[PlyCount "94"]
[EventDate "2025.04.05"]
[EventType "team-tourn"]
[EventCountry "POL"]
[SourceTitle "playchess.com"]
[Source "ChessBase"]
[SourceQuality "1"]
[WhiteTeam "Poland"]
[BlackTeam "Germany"]
[WhiteTeamCountry "POL"]
[BlackTeamCountry "GER"]
[TimeControl "40/5400+30:1800+30"]

{[%evp 24,94,22,12,29,0,22,12,8,-36,-7,-14,6,14,16,0,0,5,58,9,12,0,55,0,0,-16,0,0,0,0,0,0,0,-107,-99,-110,-103,-103,-98,-103,-100,-103,-78,-93,-83,-77,-69,-78,-79,-78,-85,-124,-126,-170,-170,-182,-181,-177,-165,-279,-279,-359,-354,-722,-714,-701,-632,-1214,-1209,-29994,-29995,-29997,-751]} 1. d4 {[%emt 0:00:05]} Nf6 {[%emt 0:00:07]} 2. c4 {[%emt 0:00:14]} c5 {[%emt 0:01:21]} 3. d5 {[%emt 0:00:22]} e6 {[%emt 0:09:20]} 4. Nc3 {[%emt 0:00:12]} exd5 {[%emt 0:00:04]} 5. cxd5 {[%emt 0:00:17]} d6 {[%emt 0:00:03]} 6. e4 {[%emt 0:00:45]} g6 {[%emt 0:00:04]} 7. Nf3 {[%emt 0:00:14]} Bg7 {[%emt 0:00:20]} 8. Bd3 {[%emt 0:05:41]} O-O {[%emt 0:01:56]} 9. O-O {[%emt 0:00:08]} Bg4 {[%emt 0:01:01]} 10. h3 {[%emt 0:00:56]} Bxf3 {[%emt 0:00:07]} 11. Qxf3 {[%emt 0:00:07]} Nbd7 {[%emt 0:00:52]} 12. Bc2 {[%emt 0:01:50]} a6 {[%emt 0:00:48]} 13. a4 {[%emt 0:00:03]} Re8 {[%emt 0:02:14] A70: Modern Benoni: 6 e4 g6 7 Nf3.} 14. Re1 {[%emt 0:11:57]} c4 $146 {[%emt 0:02:34][%cal Ob7b5]} (14... Nh5 15. Bd2 Rb8 16. Bd3 Ne5 17. Qe2 Nxd3 18. Qxd3 Qd7 19. a5 b5 20. axb6 Rxb6 {½-½ Maksimovic,B (1891)-Celik,E (1615) Sarajevo Bosna op 45th 2015 (7)}) 15. Be3 {[%emt 0:10:41]} Rc8 {[%emt 0:01:05] The position is equal.} 16. Qd1 {[%emt 0:01:12]} Nc5 {[%emt 0:01:19]} 17. Bd4 {[%emt 0:01:15]} Nh5 {[%emt 0:11:33]} 18. Bxg7 {[%emt 0:02:03]} Kxg7 {[%emt 0:00:19]} 19. Qd4+ {[%emt 0:01:57]} Kg8 {[%emt 0:00:47]} 20. g3 {[%emt 0:10:06][%cal Oa4a5] Prevents Nf4.} (20. Qxc4 Nxe4 21. Qb4 Nxc3 22. bxc3 Qg5 $14) 20... Qg5 {[%emt 0:27:07]} (20... Qd7 $11) 21. Kh2 {[%emt 0:03:54]} (21. Qxc4 Nxg3 22. fxg3 Qxg3+ 23. Kf1 Qxh3+ 24. Ke2 Nxe4 25. Qxe4 Rxe4+ (25... f5 $2 26. Qe6+ Rxe6+ 27. dxe6 $19) 26. Bxe4 Qh2+ 27. Kf1 Qxb2 $19) (21. Re3 $1 $14) 21... Qf6 $11 {[%emt 0:01:12]} 22. Rad1 {[%emt 0:08:27]} (22. Qe3 {with more complications.} b5 23. axb5 axb5 24. Nxb5 Rb8 25. Nc3) 22... Nd7 {[%emt 0:07:17]} (22... Rb8 $11) 23. Qxf6 {[%emt 0:05:35]} (23. Kg2 $14) 23... Nhxf6 {[%emt 0:00:09]} 24. Kg2 {[%emt 0:00:47]} Rc5 {[%emt 0:01:11]} 25. f3 {[%emt 0:02:27]} b5 {[%emt 0:02:22]} 26. axb5 {[%emt 0:00:42]} axb5 {[%emt 0:00:01]} 27. Ne2 {[%emt 0:01:32]} b4 {[%emt 0:01:35]} 28. Nd4 {[%emt 0:00:43]} (28. b3 $11) 28... b3 $17 {[%emt 0:00:19] Black plays on the queen side and is better} 29. Bb1 {[%emt 0:00:35][%csl Ob1] White has a bad bishop} Nb6 {[%emt 0:00:19]} 30. Kf2 {[%emt 0:01:54]} Na4 {[%emt 0:00:56]} 31. Rd2 {[%emt 0:05:39]} Rb8 {[%emt 0:03:52]} 32. Ne2 {[%emt 0:03:35]} c3 {[%emt 0:03:23] Black is much more active.} 33. bxc3 {[%emt 0:02:04]} Nxc3 {[%emt 0:01:03]} 34. Nxc3 {[%emt 0:02:06]} Rxc3 {[%emt 0:00:01]} 35. Re3 {[%emt 0:00:27]} Rc4 {[%emt 0:01:46]} 36. Rb2 {[%emt 0:01:55]} Rcb4 {[%emt 0:00:08]} 37. Rc3 {[%emt 0:03:48]} Nd7 {[%emt 0:00:12]} 38. Rc6 {[%emt 0:00:01] [#]} Ne5 $1 {[%emt 0:00:13]} 39. Ra6 {[%emt 0:00:54]} (39. Rxd6 $2 {loses.} Nc4 $19) 39... Nc4 {[%emt 0:06:09]} 40. Re2 {[%emt 0:00:00]} Nb6 {[%emt 0:00:00]} 41. Bd3 {[%emt 0:02:04]} (41. h4 $142) 41... b2 $19 {[%emt 0:06:31]} 42. Re1 {[%emt 0:00:50]} Rc8 {[%emt 0:00:48]} 43. Ke2 $2 (43. Bb1) 43... Rc1 {[%emt 0:03:37]} 44. Bb1 {[%emt 0:08:10]} Rb3 {[%emt 0:05:22] Hoping for ...Nc4.} 45. Ba2 {[%emt 0:09:38] [#]} Nc4 $1 {[%emt 0:03:22]} 46. Rxc1 {[%emt 0:03:43]} (46. Kf2 Ne5) 46... bxc1=Q {[%emt 0:00:22]} 47. Bxb3 {[%emt 0:00:10]} Qd2+ {[%emt 0:00:19] Weighted Error Value: White=0.67/Black=0.12 (very precise)   Mistake:       	White=5     	Black=2      Inaccurate:     	White=4     	---        OK:         	White=11    	Black=11     Best:        	White=1     	Black=4} 0-1

[Event "ESTCC-50 2025"]
[Site "Swidnica"]
[Date "2025.04.06"]
[Round "2.12"]
[White "Tischbierek, Raj"]
[Black "Wielosz, Jaroslaw"]
[Result "1-0"]
[Annotator "ChessBase"]
[ECO "C50"]
[WhiteElo "2418"]
[BlackElo "1939"]
[PlyCount "85"]
[EventDate "2025.04.05"]
[EventType "team-tourn"]
[EventCountry "POL"]
[SourceTitle "playchess.com"]
[Source "ChessBase"]
[SourceQuality "1"]
[WhiteTeam "Germany"]
[BlackTeam "Poland"]
[WhiteTeamCountry "GER"]
[BlackTeamCountry "POL"]
[TimeControl "40/5400+30:1800+30"]

1. e4 {[%emt 0:00:04]} e5 {[%emt 0:00:10]} 2. Nf3 {[%emt 0:00:35]} Nc6 {[%emt 0:00:10]} 3. Bc4 {[%emt 0:00:14]} Bc5 {[%emt 0:00:23]} 4. d3 {[%emt 0:00:11]} Nf6 {[%emt 0:00:13]} 5. Bg5 {[%emt 0:00:10]} h6 {[%emt 0:00:38]} 6. Bh4 {[%emt 0:00:06]} g5 {[%emt 0:01:37]} 7. Bg3 {[%emt 0:00:17]} d6 {[%emt 0:00:32]} 8. c3 {[%emt 0:00:14]} Qe7 {[%emt 0:08:52]} 9. b4 {[%emt 0:04:51]} Bb6 {[%emt 0:00:57]} 10. a4 {[%emt 0:00:51]} a5 {[%emt 0:02:00]} 11. b5 {[%emt 0:00:10]} Nb8 {[%emt 0:01:51]} 12. Nbd2 {[%emt 0:00:37]} Bg4 {[%emt 0:06:37]} 13. h3 {[%emt 0:07:26]} Bh5 {[%emt 0:06:04]} 14. h4 {[%emt 0:00:14]} Bxf3 {[%emt 0:04:59]} 15. Qxf3 {[%emt 0:04:50]} g4 {[%emt 0:02:52]} 16. Qe2 {[%emt 0:00:32]} h5 {[%emt 0:01:50]} 17. Nf1 {[%emt 0:01:39]} Nbd7 {[%emt 0:07:04]} 18. Ne3 {[%emt 0:00:51]} O-O-O {[%emt 0:06:08]} 19. Nf5 {[%emt 0:03:24]} Qf8 {[%emt 0:00:19]} 20. O-O {[%emt 0:02:22]} Ne8 {[%emt 0:04:10]} 21. Qa2 {[%emt 0:08:16]} Rh7 {[%emt 0:03:44]} 22. Rad1 {[%emt 0:02:10]} Ng7 {[%emt 0:04:10]} 23. Ne3 {[%emt 0:03:39]} f5 {[%emt 0:01:44]} 24. exf5 {[%emt 0:05:56]} Nxf5 {[%emt 0:00:31]} 25. d4 {[%emt 0:03:23]} Nxe3 {[%emt 0:09:46]} 26. fxe3 {[%emt 0:01:37]} Qe7 {[%emt 0:02:03]} 27. Qc2 {[%emt 0:03:27]} Kb8 {[%emt 0:05:47]} 28. Kh1 {[%emt 0:07:45]} Rg7 {[%emt 0:03:38]} 29. Rf5 {[%emt 0:06:41]} Rf8 {[%emt 0:04:25]} 30. Rxf8+ {[%emt 0:11:09]} Nxf8 {[%emt 0:00:34]} 31. Qf5 {[%emt 0:02:41]} Nd7 {[%emt 0:00:41]} 32. Kh2 {[%emt 0:02:37]} Ka7 {[%emt 0:01:57]} 33. Rf1 {[%emt 0:00:50]} Qe8 {[%emt 0:03:51]} 34. Bf7 {[%emt 0:06:31]} Qe7 {[%emt 0:01:22]} 35. Bxh5 {[%emt 0:01:31]} exd4 {[%emt 0:01:38]} 36. exd4 {[%emt 0:00:51]} Qe3 {[%emt 0:01:09]} 37. Bf7 {[%emt 0:01:39]} Qe7 {[%emt 0:02:21]} 38. Qe6 {[%emt 0:03:09]} Qd8 {[%emt 0:01:42]} 39. Qe8 {[%emt 0:01:16]} Qxe8 {[%emt 0:00:41]} 40. Bxe8 {[%emt 0:00:00]} Re7 {[%emt 0:00:00]} 41. Bh5 {[%emt 0:01:20]} Re3 {[%emt 0:06:39]} 42. Bxg4 {[%emt 0:00:36]} Nb8 {[%emt 0:00:30]} 43. Rf3 {[%emt 0:00:12]} 1-0

[Event "ESTCC-50 2025"]
[Site "Swidnica"]
[Date "2025.04.06"]
[Round "2.13"]
[White "Buckley, Graeme N"]
[Black "Zeidler, Sven P."]
[Result "0-1"]
[Annotator "ChessBase"]
[ECO "B00"]
[WhiteElo "2268"]
[BlackElo "2143"]
[PlyCount "80"]
[EventDate "2025.04.05"]
[EventType "team-tourn"]
[EventCountry "POL"]
[SourceTitle "playchess.com"]
[Source "ChessBase"]
[SourceQuality "1"]
[WhiteTeam "England"]
[BlackTeam "Wales"]
[WhiteTeamCountry "ENG"]
[BlackTeamCountry "WLS"]
[TimeControl "40/5400+30:1800+30"]

1. e4 {[%emt 0:00:04]} Nc6 {[%emt 0:00:11]} 2. Nf3 {[%emt 0:00:11]} d6 {[%emt 0:01:24]} 3. d4 {[%emt 0:00:17]} Nf6 {[%emt 0:00:19]} 4. Nc3 {[%emt 0:00:07]} g6 {[%emt 0:00:38]} 5. Be3 {[%emt 0:00:20]} Bg7 {[%emt 0:00:56]} 6. Qd2 {[%emt 0:00:13]} O-O {[%emt 0:00:35]} 7. O-O-O {[%emt 0:02:24]} a6 {[%emt 0:00:29]} 8. Bh6 {[%emt 0:15:32]} b5 {[%emt 0:07:47]} 9. d5 {[%emt 0:08:11]} Nb8 {[%emt 0:09:01]} 10. Bxg7 {[%emt 0:05:29]} Kxg7 {[%emt 0:00:08]} 11. h4 {[%emt 0:00:07]} h5 {[%emt 0:23:38]} 12. Ng5 {[%emt 0:00:11]} c6 {[%emt 0:05:22]} 13. Ne2 {[%emt 0:02:04]} cxd5 {[%emt 0:05:49]} 14. exd5 {[%emt 0:00:04]} Nbd7 {[%emt 0:01:06]} 15. Nf4 {[%emt 0:03:58]} Ne5 {[%emt 0:04:03]} 16. f3 {[%emt 0:01:06]} Rh8 {[%emt 0:04:45]} 17. Kb1 {[%emt 0:07:19]} Qb6 {[%emt 0:04:20]} 18. Be2 {[%emt 0:24:49]} Bf5 {[%emt 0:02:30]} 19. Qd4 {[%emt 0:04:32]} Qxd4 {[%emt 0:02:19]} 20. Rxd4 {[%emt 0:00:02]} Rhc8 21. Rc1 {[%emt 0:00:08]} Rc5 {[%emt 0:04:22]} 22. b3 {[%emt 0:05:56]} Rac8 {[%emt 0:01:19]} 23. Bd1 {[%emt 0:01:39]} a5 {[%emt 0:01:28]} 24. Kb2 {[%emt 0:05:18]} b4 {[%emt 0:00:41]} 25. a3 {[%emt 0:02:09]} bxa3+ {[%emt 0:00:59]} 26. Kxa3 {[%emt 0:00:03]} Bd7 {[%emt 0:11:35]} 27. Kb2 {[%emt 0:02:23]} a4 {[%emt 0:01:21]} 28. Ra1 {[%emt 0:01:28]} Rb8 {[%emt 0:00:40]} 29. Be2 {[%emt 0:01:44]} axb3 {[%emt 0:03:15]} 30. cxb3 {[%emt 0:00:08]} Rbc8 {[%emt 0:00:49]} 31. Ra7 {[%emt 0:02:02]} Rc1 {[%emt 0:00:25]} 32. Bc4 {[%emt 0:01:21]} Rh1 {[%emt 0:01:05]} 33. g3 {[%emt 0:02:56]} Rg1 {[%emt 0:00:22]} 34. Ne2 {[%emt 0:01:32]} Nxc4+ {[%emt 0:00:22]} 35. Rxc4 {[%emt 0:01:02]} Rxc4 {[%emt 0:00:46]} 36. Nxg1 {[%emt 0:00:09]} Rd4 {[%emt 0:00:35]} 37. Ne4 {[%emt 0:00:51]} Nxe4 {[%emt 0:01:36]} 38. Rxd7 {[%emt 0:00:48]} Nxg3 {[%emt 0:00:13]} 39. Rxe7 {[%emt 0:00:22]} Rxh4 {[%emt 0:00:38]} 40. Ka3 {[%emt 0:00:00]} Rh1 {[%emt 0:00:00]} 0-1

[Event "ESTCC-50 2025"]
[Site "Swidnica"]
[Date "2025.04.06"]
[Round "2.15"]
[White "Duncan, Chris R"]
[Black "Adams, Mark"]
[Result "1-0"]
[Annotator "ChessBase"]
[ECO "B23"]
[WhiteElo "2178"]
[BlackElo "1916"]
[PlyCount "63"]
[EventDate "2025.04.05"]
[EventType "team-tourn"]
[EventCountry "POL"]
[SourceTitle "playchess.com"]
[Source "ChessBase"]
[SourceQuality "1"]
[WhiteTeam "England"]
[BlackTeam "Wales"]
[WhiteTeamCountry "ENG"]
[BlackTeamCountry "WLS"]
[TimeControl "40/5400+30:1800+30"]

1. e4 {[%emt 0:00:22]} c5 {[%emt 0:00:18]} 2. Nc3 {[%emt 0:00:16]} a6 {[%emt 0:00:06]} 3. g3 {[%emt 0:00:25]} b5 {[%emt 0:01:09]} 4. Bg2 {[%emt 0:00:12]} Bb7 {[%emt 0:00:08]} 5. d3 {[%emt 0:00:17]} e6 {[%emt 0:00:50]} 6. Nh3 {[%emt 0:00:07]} d6 {[%emt 0:04:08]} 7. O-O {[%emt 0:00:47]} Nc6 {[%emt 0:04:14]} 8. f4 {[%emt 0:02:10]} b4 {[%emt 0:10:25]} 9. Ne2 {[%emt 0:03:08]} Qc7 {[%emt 0:05:43]} 10. a3 {[%emt 0:08:19]} Be7 {[%emt 0:12:22]} 11. axb4 {[%emt 0:04:37]} cxb4 {[%emt 0:08:27]} 12. d4 {[%emt 0:11:58]} Nf6 {[%emt 0:12:18]} 13. Nf2 {[%emt 0:14:26]} O-O {[%emt 0:07:34]} 14. Be3 {[%emt 0:10:24]} Rfe8 {[%emt 0:05:21]} 15. g4 {[%emt 0:05:16]} Bf8 {[%emt 0:01:34]} 16. g5 {[%emt 0:02:41]} Nd7 {[%emt 0:01:17]} 17. Ng3 {[%emt 0:03:42]} g6 {[%emt 0:04:02]} 18. Qd2 {[%emt 0:09:22]} a5 {[%emt 0:05:31]} 19. Ng4 {[%emt 0:01:30]} Bg7 {[%emt 0:01:23]} 20. Rad1 {[%emt 0:05:24]} Ne7 {[%emt 0:04:30]} 21. h4 {[%emt 0:01:26]} Rac8 {[%emt 0:00:26]} 22. Rf2 {[%emt 0:00:23]} Nb6 {[%emt 0:00:29]} 23. b3 {[%emt 0:00:55]} d5 {[%emt 0:00:12]} 24. Nf6+ {[%emt 0:01:16]} Bxf6 {[%emt 0:00:13]} 25. gxf6 {[%emt 0:00:05]} Nc6 {[%emt 0:00:08]} 26. e5 {[%emt 0:01:02]} Na7 {[%emt 0:00:08]} 27. Qe2 {[%emt 0:03:23]} Qd7 {[%emt 0:02:02]} 28. f5 {[%emt 0:05:05]} Nb5 {[%emt 0:02:35]} 29. Qg4 {[%emt 0:01:09]} Nc7 {[%emt 0:00:30]} 30. fxg6 {[%emt 0:01:03]} hxg6 {[%emt 0:00:10]} 31. Qg5 {[%emt 0:00:21]} Red8 {[%emt 0:00:10]} 32. h5 {[%emt 0:00:44]} 1-0

[Event "ESTCC-50 2025"]
[Site "Swidnica"]
[Date "2025.04.06"]
[Round "2.16"]
[White "Hughes, Anthony"]
[Black "Noyce, Robert C"]
[Result "1/2-1/2"]
[Annotator "NA"]
[ECO "A10"]
[WhiteElo "1911"]
[BlackElo "2065"]
[PlyCount "22"]
[EventDate "2025.04.05"]
[EventType "team-tourn"]
[EventCountry "POL"]
[SourceTitle "playchess.com"]
[Source "ChessBase"]
[SourceQuality "1"]
[WhiteTeam "Wales"]
[BlackTeam "England"]
[WhiteTeamCountry "WLS"]
[BlackTeamCountry "ENG"]
[TimeControl "40/5400+30:1800+30"]

1. c4 {[%emt 0:00:03]} f5 {[%emt 0:00:07]} 2. Nc3 {[%emt 0:00:05]} Nf6 {[%emt 0:00:08]} 3. g3 {[%emt 0:00:05]} g6 {[%emt 0:01:39]} 4. Bg2 {[%emt 0:00:25]} Bg7 {[%emt 0:00:07]} 5. d3 {[%emt 0:00:23]} O-O {[%emt 0:01:06]} 6. e4 {[%emt 0:00:19]} fxe4 {[%emt 0:00:31]} 7. dxe4 {[%emt 0:00:15]} d6 {[%emt 0:01:05]} 8. Nge2 {[%emt 0:02:08]} e5 {[%emt 0:02:18]} 9. O-O {[%emt 0:13:24]} Be6 {[%emt 0:27:14]} 10. b3 {[%emt 0:09:08]} Nc6 {[%emt 0:04:29]} 11. Nd5 {[%emt 0:10:13]} Ne7 {[%emt 0:15:25]} 1/2-1/2